[Event "African Online-ch U20-Open 2021"]
[Site "Online"]
[Date "2021.02.01"]
[Round "2.15"]
[White "Ofile Masilo"]
[Black "Machinya Desire"]
[Result "0-1"]
[ECO "D86"]
[WhiteElo "1457"]
[BlackElo "1638"]
[Annotator "NA RC"]
[PlyCount "124"]
[EventDate "2021.02.01"]
[EventType "swiss"]
[EventCountry "NET"]
[SourceTitle "playchess.com"]
[Source "ChessBase"]
[SourceQuality "1"]
[TimeControl "1500+10"]

1. d4 {[%emt 0:00:00]} Nf6 {[%emt 0:00:04]} 2. c4 {[%emt 0:00:08]} g6 {[%emt 0:00:25]} 3. Nc3 {[%emt 0:00:06]} d5 {[%emt 0:00:06]} 4. cxd5 {[%emt 0:00:08]} Nxd5 {[%emt 0:00:08]} 5. e4 {[%emt 0:00:07]} Nxc3 {[%emt 0:00:16]} 6. bxc3 {[%emt 0:00:05]} Bg7 {[%emt 0:00:12]} 7. Bc4 {[%emt 0:00:24]} O-O {[%emt 0:00:05]} 8. Ne2 {[%emt 0:00:17]} c6 {[%emt 0:00:28]} 9. a4 {[%emt 0:00:42]} Nd7 {[%emt 0:01:46]} 10. O-O {[%emt 0:01:41]} a6 {[%emt 0:00:23]} 11. a5 {[%emt 0:00:22]} Kh8 {[%emt 0:01:18]} 12. Bg5 {[%emt 0:02:12]} Nf6 {[%emt 0:02:43]} 13. e5 {[%emt 0:02:36]} Nd5 {[%emt 0:00:51]} 14. Qb3 {[%emt 0:01:49]} Qd7 {[%emt 0:06:03]} 15. Bxd5 {[%emt 0:04:44]} cxd5 {[%emt 0:00:06]} 16. Be3 {[%emt 0:01:28]} e6 {[%emt 0:01:41]} 17. Nc1 {[%emt 0:00:18]} Re8 {[%emt 0:00:33]} 18. Nd3 {[%emt 0:00:24]} Bf8 {[%emt 0:00:06]} 19. f4 {[%emt 0:01:08]} Rb8 {[%emt 0:00:32]} 20. Rf3 {[%emt 0:01:35]} Qc7 {[%emt 0:00:27]} 21. Rh3 {[%emt 0:01:02]} b6 {[%emt 0:00:59]} 22. Rb1 {[%emt 0:01:25]} b5 {[%emt 0:00:10]} 23. Ra1 {[%emt 0:01:11]} Bd7 {[%emt 0:00:44]} 24. Nf2 {[%emt 0:00:57]} Rec8 {[%emt 0:00:24]} 25. Bc1 {[%emt 0:00:34]} b4 {[%emt 0:00:59]} 26. Bd2 {[%emt 0:01:08]} bxc3 {[%emt 0:03:03]} 27. Qxc3 {[%emt 0:01:02]} Qa7 {[%emt 0:00:10]} 28. Qe3 {[%emt 0:00:48]} Rc4 {[%emt 0:00:10]} 29. Ng4 {[%emt 0:00:35]} Bg7 {[%emt 0:00:24]} 30. Rc1 {[%emt 0:00:30]} Rxc1+ {[%emt 0:02:37]} 31. Bxc1 {[%emt 0:00:07]} Rb4 {[%emt 0:00:04]} 32. Ba3 {[%emt 0:00:31]} Rxd4 {[%emt 0:00:43]} 33. Bc5 {[%emt 0:00:08]} Qxc5 {[%emt 0:00:06]} 34. Nf6 {[%emt 0:00:07]} Rd1+ {[%emt 0:00:21]} 35. Kf2 {[%emt 0:00:06]} Qxe3+ {[%emt 0:00:03]} 36. Kxe3 {[%emt 0:00:08]} Bxf6 {[%emt 0:00:04]} 37. exf6 {[%emt 0:00:04]} Bb5 {[%emt 0:00:04]} 38. Kf2 {[%emt 0:00:10]} Rd3 {[%emt 0:00:10]} 39. Rh4 {[%emt 0:00:13]} Kg8 {[%emt 0:00:05]} 40. g4 {[%emt 0:00:05]} Ra3 {[%emt 0:00:11]} 41. f5 {[%emt 0:00:07]} exf5 {[%emt 0:00:58]} 42. gxf5 {[%emt 0:00:06]} Bd3 {[%emt 0:00:08]} 43. Rb4 {[%emt 0:00:17]} Bb5 {[%emt 0:00:07]} 44. Rd4 {[%emt 0:00:19]} Rd3 {[%emt 0:00:04]} 45. Rg4 {[%emt 0:00:17]} Rd2+ {[%emt 0:00:31]} 46. Ke3 {[%emt 0:00:12]} Rxh2 {[%emt 0:00:08]} 47. Rd4 {[%emt 0:00:08]} Re2+ {[%emt 0:00:09]} 48. Kf3 {[%emt 0:00:06]} Re5 {[%emt 0:00:06]} 49. fxg6 {[%emt 0:00:06]} fxg6 {[%emt 0:00:02]} 50. Rf4 {[%emt 0:00:08]} Kf7 {[%emt 0:00:04]} 51. Rh4 {[%emt 0:00:04]} h5 {[%emt 0:00:02]} 52. Rh1 {[%emt 0:00:06]} Kxf6 {[%emt 0:00:04]} 53. Rc1 {[%emt 0:00:08]} d4 {[%emt 0:00:12]} 54. Rc8 {[%emt 0:00:04]} d3 {[%emt 0:00:04]} 55. Rf8+ {[%emt 0:00:05]} Kg5 {[%emt 0:00:03]} 56. Rd8 {[%emt 0:00:04]} h4 {[%emt 0:00:13]} 57. Rd6 {[%emt 0:00:14]} Bc4 {[%emt 0:00:27]} 58. Rd4 {[%emt 0:00:09]} Rd5 {[%emt 0:00:19]} 59. Rxc4 {[%emt 0:00:16]} d2 {[%emt 0:00:03]} 60. Rg4+ {[%emt 0:00:06]} Kh5 {[%emt 0:00:05]} 61. Rb4 {[%emt 0:00:27]} d1=Q+ {[%emt 0:00:07]} 62. Ke3 {[%emt 0:00:05]} Qd2+ {[%emt 0:00:03]} 0-1

[Event "African Online-ch U20-Open 2021"]
[Site "Online"]
[Date "2021.02.01"]
[Round "2.16"]
[White "Barrani, Adem"]
[Black "Mcligeyo, Robert"]
[Result "0-1"]
[ECO "A45"]
[WhiteElo "1396"]
[BlackElo "1688"]
[Annotator "NA RC"]
[PlyCount "72"]
[EventDate "2021.02.01"]
[EventType "swiss"]
[EventCountry "NET"]
[SourceTitle "playchess.com"]
[Source "ChessBase"]
[SourceQuality "1"]
[TimeControl "1500+10"]

1. d4 {[%emt 0:08:54]} Nf6 {[%emt 0:00:12]} 2. Bg5 {[%emt 0:00:07]} Ne4 {[%emt 0:00:13]} 3. Bf4 {[%emt 0:00:11]} d6 {[%emt 0:00:03]} 4. f3 {[%emt 0:00:04]} Nf6 {[%emt 0:00:05]} 5. e4 {[%emt 0:00:08]} g6 {[%emt 0:00:09]} 6. Nc3 {[%emt 0:00:07]} Bg7 {[%emt 0:00:03]} 7. Qd2 {[%emt 0:00:03]} O-O {[%emt 0:00:07]} 8. g4 {[%emt 0:00:35]} Nc6 {[%emt 0:00:06]} 9. h4 {[%emt 0:00:07]} e5 {[%emt 0:00:03]} 10. Bh6 {[%emt 0:00:36]} exd4 {[%emt 0:00:23]} 11. Nce2 {[%emt 0:00:43]} d5 {[%emt 0:00:05]} 12. Bxg7 {[%emt 0:00:02]} Kxg7 {[%emt 0:00:03]} 13. h5 {[%emt 0:00:02]} dxe4 {[%emt 0:00:18]} 14. hxg6 {[%emt 0:00:02]} fxg6 {[%emt 0:00:02]} 15. Qh6+ {[%emt 0:00:09]} Kg8 {[%emt 0:00:03]} 16. g5 {[%emt 0:00:06]} Nh5 {[%emt 0:00:13]} 17. Ng3 {[%emt 0:00:08]} exf3 {[%emt 0:00:32]} 18. O-O-O {[%emt 0:00:15]} Bg4 {[%emt 0:00:55]} 19. Nxh5 {[%emt 0:02:59]} Bxh5 {[%emt 0:00:03]} 20. Rxh5 {[%emt 0:00:15]} gxh5 {[%emt 0:00:05]} 21. g6 {[%emt 0:00:10]} Qe7 {[%emt 0:00:13]} 22. Qxh5 {[%emt 0:04:18]} Qg7 {[%emt 0:00:21]} 23. Nxf3 {[%emt 0:00:34]} Qxg6 {[%emt 0:00:07]} 24. Bc4+ {[%emt 0:01:12]} Kh8 {[%emt 0:00:10]} 25. Qh3 {[%emt 0:00:48]} Qe4 {[%emt 0:01:27]} 26. Bd3 {[%emt 0:01:37]} Rxf3 {[%emt 0:00:11]} 27. Qh1 {[%emt 0:00:27]} Qf4+ {[%emt 0:00:32]} 28. Kb1 {[%emt 0:00:07]} Qf7 {[%emt 0:00:09]} 29. Bxh7 {[%emt 0:00:47]} Kg7 {[%emt 0:01:24]} 30. Rg1+ {[%emt 0:00:51]} Kf8 {[%emt 0:00:09]} 31. Rg8+ {[%emt 0:00:28]} Ke7 {[%emt 0:00:05]} 32. Qh4+ {[%emt 0:01:25]} Kd6 {[%emt 0:00:29]} 33. Qh6+ {[%emt 0:00:50]} Kc5 {[%emt 0:00:40]} 34. b4+ {[%emt 0:00:06]} Nxb4 {[%emt 0:00:16]} 35. Rxa8 {[%emt 0:00:40]} Rf1+ {[%emt 0:00:13]} 36. Kb2 {[%emt 0:00:03]} Qxa2# {[%emt 0:00:02]} 0-1

[Event "African Online-ch U20-Open 2021"]
[Site "Online"]
[Date "2021.02.01"]
[Round "2.17"]
[White "Pungo, Honorato"]
[Black "Karania, Hardiv"]
[Result "1-0"]
[ECO "C53"]
[WhiteElo "1550"]
[BlackElo "1317"]
[Annotator "NA RC"]
[PlyCount "115"]
[EventDate "2021.02.01"]
[EventType "swiss"]
[EventCountry "NET"]
[SourceTitle "playchess.com"]
[Source "ChessBase"]
[SourceQuality "1"]
[TimeControl "1500+10"]

1. e4 {[%emt 0:00:00]} e5 {[%emt 0:00:06]} 2. Nf3 {[%emt 0:00:04]} Nc6 {[%emt 0:00:04]} 3. Bc4 {[%emt 0:00:04]} Bc5 {[%emt 0:00:16]} 4. c3 {[%emt 0:00:04]} d6 {[%emt 0:00:10]} 5. d4 {[%emt 0:00:05]} exd4 {[%emt 0:00:23]} 6. cxd4 {[%emt 0:00:04]} Bb4+ {[%emt 0:00:03]} 7. Bd2 {[%emt 0:00:03]} Bxd2+ {[%emt 0:00:13]} 8. Nbxd2 {[%emt 0:00:04]} Nge7 {[%emt 0:00:07]} 9. O-O {[%emt 0:00:46]} O-O {[%emt 0:00:04]} 10. h3 {[%emt 0:00:04]} a6 {[%emt 0:00:17]} 11. a4 {[%emt 0:00:14]} Ng6 {[%emt 0:00:08]} 12. Re1 {[%emt 0:00:23]} Be6 {[%emt 0:00:32]} 13. d5 {[%emt 0:00:05]} Nge5 {[%emt 0:00:25]} 14. dxe6 {[%emt 0:00:10]} fxe6 {[%emt 0:00:03]} 15. Bxe6+ {[%emt 0:00:07]} Kh8 {[%emt 0:00:04]} 16. Bd5 {[%emt 0:00:24]} Nxf3+ {[%emt 0:00:38]} 17. Nxf3 {[%emt 0:00:05]} Qd7 {[%emt 0:00:53]} 18. b3 {[%emt 0:00:23]} Rae8 {[%emt 0:00:14]} 19. Rc1 {[%emt 0:00:17]} Ne5 {[%emt 0:02:14]} 20. Nxe5 {[%emt 0:00:08]} Rxe5 {[%emt 0:00:04]} 21. Bxb7 {[%emt 0:00:07]} Qf7 {[%emt 0:00:13]} 22. Rf1 {[%emt 0:00:46]} a5 {[%emt 0:00:26]} 23. Bd5 {[%emt 0:00:07]} Qd7 {[%emt 0:00:18]} 24. Qg4 {[%emt 0:00:14]} Qe7 {[%emt 0:00:19]} 25. f4 {[%emt 0:00:40]} h5 {[%emt 0:00:53]} 26. Qg3 {[%emt 0:00:38]} h4 {[%emt 0:01:13]} 27. Qg4 {[%emt 0:00:08]} Rxd5 {[%emt 0:00:13]} 28. exd5 {[%emt 0:00:05]} Qe3+ {[%emt 0:00:34]} 29. Kh1 {[%emt 0:00:05]} Qxb3 {[%emt 0:00:26]} 30. Rxc7 {[%emt 0:00:15]} Qb2 {[%emt 0:00:14]} 31. Qxh4+ {[%emt 0:00:52]} Kg8 {[%emt 0:00:09]} 32. Qg4 {[%emt 0:00:09]} Qf6 {[%emt 0:00:42]} 33. Qe6+ {[%emt 0:00:07]} Qxe6 {[%emt 0:00:07]} 34. dxe6 {[%emt 0:00:02]} Re8 {[%emt 0:00:05]} 35. f5 {[%emt 0:00:04]} d5 {[%emt 0:00:13]} 36. Rd7 {[%emt 0:00:04]} d4 {[%emt 0:00:11]} 37. Rxd4 {[%emt 0:00:04]} Kf8 {[%emt 0:00:02]} 38. Rd7 {[%emt 0:00:05]} Rb8 {[%emt 0:00:18]} 39. Ra7 {[%emt 0:00:14]} Rb4 {[%emt 0:00:04]} 40. Rxa5 {[%emt 0:00:06]} Ke7 {[%emt 0:00:02]} 41. g4 {[%emt 0:00:06]} Kf6 {[%emt 0:00:04]} 42. Ra7 {[%emt 0:00:06]} Rb3 {[%emt 0:00:05]} 43. Kg2 {[%emt 0:00:04]} Rb2+ {[%emt 0:00:05]} 44. Rf2 {[%emt 0:00:04]} Rb3 {[%emt 0:00:16]} 45. a5 {[%emt 0:00:05]} Ra3 {[%emt 0:00:11]} 46. a6 {[%emt 0:00:02]} Kg5 {[%emt 0:00:10]} 47. Rxg7+ {[%emt 0:00:05]} Kh4 {[%emt 0:00:02]} 48. Rh7+ {[%emt 0:00:15]} Kg5 {[%emt 0:00:04]} 49. a7 {[%emt 0:00:03]} Kf6 {[%emt 0:00:09]} 50. h4 {[%emt 0:00:12]} Ra4 {[%emt 0:00:05]} 51. g5+ {[%emt 0:00:08]} Ke5 {[%emt 0:00:07]} 52. e7 {[%emt 0:00:11]} Rg4+ {[%emt 0:00:05]} 53. Kh3 {[%emt 0:00:05]} Ra4 {[%emt 0:00:13]} 54. e8=N {[%emt 0:00:18]} Ra3+ {[%emt 0:00:08]} 55. Kg2 {[%emt 0:00:05]} Ra4 {[%emt 0:00:12]} 56. Re7+ {[%emt 0:00:04]} Kd4 {[%emt 0:00:03]} 57. Rf4+ {[%emt 0:00:03]} Kc3 {[%emt 0:00:08]} 58. Rxa4 {[%emt 0:00:03]} 1-0

[Event "African Online-ch U20-Open 2021"]
[Site "Online"]
[Date "2021.02.01"]
[Round "2.18"]
[White "Wael, Abdel Rahman"]
[Black "Belattar, Mohamed Walid"]
[Result "1-0"]
[ECO "A47"]
[WhiteElo "1570"]
[BlackElo "1214"]
[Annotator "NA RC"]
[PlyCount "101"]
[EventDate "2021.02.01"]
[EventType "swiss"]
[EventCountry "NET"]
[SourceTitle "playchess.com"]
[Source "ChessBase"]
[SourceQuality "1"]
[TimeControl "1500+10"]

1. d4 {[%emt 0:00:00]} Nf6 {[%emt 0:00:05]} 2. Bf4 {[%emt 0:00:20]} e6 {[%emt 0:00:12]} 3. e3 {[%emt 0:00:12]} b6 {[%emt 0:00:14]} 4. Nf3 {[%emt 0:00:04]} Bb7 {[%emt 0:00:08]} 5. Nbd2 {[%emt 0:00:30]} Nc6 {[%emt 0:00:19]} 6. c3 {[%emt 0:00:03]} Be7 {[%emt 0:00:09]} 7. Bd3 {[%emt 0:00:12]} O-O {[%emt 0:00:23]} 8. Ne5 {[%emt 0:00:09]} Nxe5 {[%emt 0:01:50]} 9. dxe5 {[%emt 0:00:05]} Ne8 {[%emt 0:05:07]} 10. Qg4 {[%emt 0:00:55]} f5 {[%emt 0:02:27]} 11. Qh3 {[%emt 0:00:08]} g5 {[%emt 0:02:09]} 12. Qg3 {[%emt 0:01:17]} Ng7 {[%emt 0:01:03]} 13. Bxg5 {[%emt 0:02:11]} Bxg5 {[%emt 0:00:14]} 14. h4 {[%emt 0:00:06]} Be7 {[%emt 0:04:09]} 15. h5 {[%emt 0:00:04]} Kh8 {[%emt 0:08:09]} 16. Nf3 {[%emt 0:00:23]} Bxf3 {[%emt 0:00:46]} 17. gxf3 {[%emt 0:00:10]} Rg8 {[%emt 0:00:06]} 18. Qh3 {[%emt 0:00:14]} Ne8 {[%emt 0:00:10]} 19. O-O-O {[%emt 0:00:12]} c6 {[%emt 0:00:14]} 20. f4 {[%emt 0:00:03]} Nc7 {[%emt 0:00:04]} 21. e4 {[%emt 0:00:17]} fxe4 {[%emt 0:00:11]} 22. Bxe4 {[%emt 0:00:02]} Nd5 {[%emt 0:00:05]} 23. f5 {[%emt 0:00:20]} Bg5+ {[%emt 0:00:16]} 24. Kb1 {[%emt 0:00:25]} Nf4 {[%emt 0:00:12]} 25. Qf3 {[%emt 0:00:16]} Nd5 {[%emt 0:00:10]} 26. c4 {[%emt 0:01:40]} Nc7 {[%emt 0:00:11]} 27. Bxc6 {[%emt 0:00:09]} dxc6 {[%emt 0:00:08]} 28. Rxd8 {[%emt 0:00:04]} Raxd8 {[%emt 0:00:05]} 29. Qxc6 {[%emt 0:00:14]} Rc8 {[%emt 0:00:05]} 30. Qe4 {[%emt 0:00:14]} exf5 {[%emt 0:00:13]} 31. Qxf5 {[%emt 0:00:05]} Rcf8 {[%emt 0:00:07]} 32. Qd7 {[%emt 0:00:21]} Rg7 {[%emt 0:00:19]} 33. Qd6 {[%emt 0:00:59]} Rd8 {[%emt 0:00:13]} 34. Qc6 {[%emt 0:00:17]} Ne8 {[%emt 0:00:10]} 35. Qe4 {[%emt 0:00:40]} Rgd7 {[%emt 0:00:09]} 36. Qf5 {[%emt 0:00:34]} Rg7 {[%emt 0:00:11]} 37. h6 {[%emt 0:00:12]} Rg8 {[%emt 0:00:08]} 38. f4 {[%emt 0:00:48]} Be7 {[%emt 0:00:09]} 39. Qe6 {[%emt 0:00:13]} Bf8 {[%emt 0:00:12]} 40. f5 {[%emt 0:00:22]} Rg3 {[%emt 0:00:12]} 41. f6 {[%emt 0:00:14]} Rg6 {[%emt 0:00:06]} 42. Qf7 {[%emt 0:00:19]} Nxf6 {[%emt 0:00:16]} 43. exf6 {[%emt 0:00:05]} Bxh6 {[%emt 0:00:10]} 44. Rxh6 {[%emt 0:00:29]} Rg1+ {[%emt 0:00:03]} 45. Kc2 {[%emt 0:00:03]} Rg2+ {[%emt 0:00:02]} 46. Kc3 {[%emt 0:00:13]} Rg3+ {[%emt 0:00:06]} 47. Kb4 {[%emt 0:00:06]} a5+ {[%emt 0:00:08]} 48. Ka4 {[%emt 0:00:15]} b5+ {[%emt 0:00:27]} 49. Kxb5 {[%emt 0:00:18]} Rg5+ {[%emt 0:00:07]} 50. Ka4 {[%emt 0:00:06]} Rd7 {[%emt 0:00:14]} 51. Rxh7# {[%emt 0:00:08]} 1-0

[Event "African Online-ch U20-Open 2021"]
[Site "Online"]
[Date "2021.02.01"]
[Round "3.3"]
[White "Beghriche, Rami Tadjeddine"]
[Black "Junior, Domingos"]
[Result "1-0"]
[ECO "E61"]
[WhiteElo "1783"]
[BlackElo "1894"]
[Annotator "NA RC"]
[PlyCount "69"]
[EventDate "2021.02.01"]
[EventType "swiss"]
[EventCountry "NET"]
[SourceTitle "playchess.com"]
[Source "ChessBase"]
[SourceQuality "1"]
[TimeControl "1500+10"]

1. Nf3 {[%emt 0:00:00]} Nf6 {[%emt 0:00:04]} 2. b3 {[%emt 0:00:07]} g6 {[%emt 0:00:08]} 3. Bb2 {[%emt 0:00:09]} Bg7 {[%emt 0:00:01]} 4. d4 {[%emt 0:00:07]} O-O {[%emt 0:00:09]} 5. e3 {[%emt 0:00:02]} d6 {[%emt 0:00:23]} 6. Be2 {[%emt 0:00:19]} Nbd7 {[%emt 0:00:04]} 7. c4 {[%emt 0:00:06]} e5 {[%emt 0:00:46]} 8. O-O {[%emt 0:00:10]} Re8 {[%emt 0:00:26]} 9. Nc3 {[%emt 0:00:03]} c6 {[%emt 0:00:18]} 10. h3 {[%emt 0:00:15]} h6 {[%emt 0:00:33]} 11. Qc2 {[%emt 0:00:12]} Qc7 {[%emt 0:00:18]} 12. Rfd1 {[%emt 0:00:30]} Nf8 {[%emt 0:00:16]} 13. dxe5 {[%emt 0:00:21]} dxe5 {[%emt 0:00:07]} 14. Ba3 {[%emt 0:00:02]} N6d7 {[%emt 0:10:15]} 15. Bd6 {[%emt 0:00:24]} Qd8 {[%emt 0:00:27]} 16. c5 {[%emt 0:00:09]} Ne6 {[%emt 0:00:56]} 17. Bxe5 {[%emt 0:00:20]} Nexc5 {[%emt 0:00:46]} 18. Bxg7 {[%emt 0:00:29]} Kxg7 {[%emt 0:00:05]} 19. b4 {[%emt 0:00:04]} Ne6 {[%emt 0:00:25]} 20. Ne4 {[%emt 0:00:05]} Qe7 {[%emt 0:00:30]} 21. Qb2+ {[%emt 0:00:08]} f6 {[%emt 0:00:04]} 22. Nh4 {[%emt 0:00:22]} Nb6 {[%emt 0:00:42]} 23. Nd6 {[%emt 0:00:22]} Nc7 {[%emt 0:00:57]} 24. Bh5 {[%emt 0:00:18]} Nbd5 {[%emt 0:02:57]} 25. Qc2 {[%emt 0:00:23]} f5 {[%emt 0:00:40]} 26. Nxe8+ {[%emt 0:00:15]} Nxe8 $18 {[%emt 0:00:09]} 27. Nxg6 {[%emt 0:00:34]} Qg5 {[%emt 0:00:37]} 28. Qc5 {[%emt 0:01:04]} Qxh5 {[%emt 0:02:33]} 29. Qf8+ {[%emt 0:00:21]} Kh7 {[%emt 0:00:29]} 30. Qh8+ {[%emt 0:00:05]} Kxg6 {[%emt 0:00:03]} 31. Qxe8+ {[%emt 0:00:02]} Kg5 {[%emt 0:00:04]} 32. f4+ {[%emt 0:00:02]} Kh4 {[%emt 0:00:05]} 33. g3+ {[%emt 0:00:06]} Kxg3 {[%emt 0:00:30]} 34. Qxh5 {[%emt 0:00:04]} Bd7 {[%emt 0:00:21]} 35. Rf1 {[%emt 0:00:02]} 1-0

[Event "African Online-ch U20-Open 2021"]
[Site "Online"]
[Date "2021.02.01"]
[Round "3.4"]
[White "Vasco Mateus Felizardo Viageir"]
[Black "Selogelo Othata"]
[Result "1-0"]
[ECO "B42"]
[WhiteElo "1862"]
[BlackElo "1725"]
[Annotator "NA RC"]
[PlyCount "105"]
[EventDate "2021.02.01"]
[EventType "swiss"]
[EventCountry "NET"]
[SourceTitle "playchess.com"]
[Source "ChessBase"]
[SourceQuality "1"]
[TimeControl "1500+10"]

1. e4 {[%emt 0:00:00]} c5 {[%emt 0:00:14]} 2. Nf3 {[%emt 0:00:04]} e6 {[%emt 0:00:10]} 3. d4 {[%emt 0:00:18]} cxd4 {[%emt 0:00:07]} 4. Nxd4 {[%emt 0:00:03]} Nf6 {[%emt 0:00:07]} 5. Bd3 {[%emt 0:00:03]} Be7 {[%emt 0:00:49]} 6. O-O {[%emt 0:00:05]} d6 {[%emt 0:00:03]} 7. Nc3 {[%emt 0:00:03]} a6 {[%emt 0:00:06]} 8. a4 {[%emt 0:00:10]} Qc7 {[%emt 0:00:14]} 9. Be3 {[%emt 0:00:08]} O-O {[%emt 0:00:05]} 10. Kh1 {[%emt 0:00:09]} Nbd7 {[%emt 0:00:06]} 11. f4 {[%emt 0:01:34]} Re8 {[%emt 0:00:18]} 12. f5 {[%emt 0:00:06]} e5 {[%emt 0:00:12]} 13. Nb3 {[%emt 0:00:09]} b6 {[%emt 0:00:36]} 14. g4 {[%emt 0:00:25]} h6 {[%emt 0:01:14]} 15. g5 {[%emt 0:00:20]} hxg5 {[%emt 0:00:04]} 16. Bxg5 {[%emt 0:00:03]} Bb7 {[%emt 0:00:05]} 17. Qf3 {[%emt 0:00:24]} Nh7 {[%emt 0:02:13]} (17... d5 $11 18. Bxf6 Nxf6) 18. Bxe7 {[%emt 0:00:04]} Rxe7 {[%emt 0:00:04]} 19. Rg1 {[%emt 0:00:03]} f6 {[%emt 0:02:22]} 20. Qe2 {[%emt 0:00:11]} Rc8 {[%emt 0:00:16]} 21. Bxa6 {[%emt 0:00:09]} Bxa6 {[%emt 0:00:27]} 22. Qxa6 {[%emt 0:00:03]} Qc4 {[%emt 0:00:53]} 23. Qxc4+ {[%emt 0:02:00]} Rxc4 {[%emt 0:00:03]} 24. Rad1 {[%emt 0:00:07]} Rc6 {[%emt 0:01:19]} 25. h4 {[%emt 0:01:48]} Ndf8 {[%emt 0:03:30]} 26. Rd5 {[%emt 0:00:47]} Kf7 {[%emt 0:00:50]} 27. Rd3 $18 {[%emt 0:02:28]} g5 {[%emt 0:01:06]} 28. fxg6+ {[%emt 0:00:17]} Nxg6 {[%emt 0:00:03]} 29. Rdg3 {[%emt 0:00:05]} Nf4 {[%emt 0:01:31]} 30. Rg7+ {[%emt 0:00:17]} Kf8 {[%emt 0:00:14]} 31. Rxe7 {[%emt 0:00:03]} Kxe7 {[%emt 0:00:04]} 32. Rg7+ {[%emt 0:00:01]} Ke6 {[%emt 0:00:05]} 33. Rxh7 {[%emt 0:00:04]} d5 {[%emt 0:00:08]} 34. exd5+ {[%emt 0:00:10]} Nxd5 {[%emt 0:00:04]} 35. Nxd5 {[%emt 0:00:15]} Kxd5 {[%emt 0:00:03]} 36. Rd7+ {[%emt 0:00:02]} Ke6 {[%emt 0:00:10]} 37. Rd2 {[%emt 0:00:03]} f5 {[%emt 0:00:13]} 38. h5 {[%emt 0:00:06]} f4 {[%emt 0:00:09]} 39. h6 {[%emt 0:00:10]} Kf5 {[%emt 0:00:03]} 40. h7 {[%emt 0:00:11]} Rc8 {[%emt 0:00:09]} 41. Rh2 {[%emt 0:00:03]} Rh8 {[%emt 0:00:03]} 42. Kg2 {[%emt 0:00:01]} Kg4 {[%emt 0:00:11]} 43. Nd2 {[%emt 0:00:03]} f3+ {[%emt 0:01:14]} 44. Nxf3 {[%emt 0:00:04]} Kf4 {[%emt 0:00:02]} 45. Kf2 {[%emt 0:00:04]} e4 {[%emt 0:00:04]} 46. Rh4+ {[%emt 0:00:03]} Kf5 {[%emt 0:00:04]} 47. Nd2 {[%emt 0:00:03]} Kg5 {[%emt 0:00:13]} 48. Rh1 {[%emt 0:00:03]} Kf4 {[%emt 0:00:09]} 49. Ke2 {[%emt 0:00:02]} e3 {[%emt 0:00:31]} 50. Nc4 {[%emt 0:00:03]} Kg5 {[%emt 0:00:10]} 51. Nxb6 {[%emt 0:00:07]} Kg6 {[%emt 0:00:05]} 52. a5 {[%emt 0:00:02]} Kf7 {[%emt 0:00:50]} 53. a6 {[%emt 0:00:04]} 1-0